fUSD/lending_fUSD_20240404
["ID","MTS","AMOUNT","RATE_DAILY","PERIOD"]
[321440563,1712190706225,-699.93,0.00055342,120]
[321440564,1712190706234,-514.83050403,0.00055342,120]
[321440565,1712190706243,-1032.42,0.00055342,120]
[321440566,1712190706252,-500.0,0.00055342,120]
[321440567,1712190706261,-500.0,0.00055342,120]
[321440568,1712190706270,-500.0,0.00055342,120]
[321440569,1712190706279,-1816.42,0.00055342,120]
[321440570,1712190706288,-1753.93,0.00055342,120]
[321440571,1712190706297,-500.0,0.00055342,120]
[321440572,1712190706306,-500.0,0.00055342,120]
[321440573,1712190706315,-2410.37,0.00055342,120]
[321440574,1712190706324,-1401.23,0.00055342,120]
[321440575,1712190706333,-1098.35,0.00055342,120]
[321440576,1712190706342,-603.08,0.00055342,120]
[321440577,1712190706351,-500.0,0.00055342,120]
[321440578,1712190706360,-500.0,0.00055342,120]
[321440579,1712190706369,-615.95530027,0.00055342,120]
[321440580,1712190706379,-500.0,0.00055342,120]
[321440581,1712190706388,-954.31,0.00055342,120]
[321440582,1712190706398,-500.0,0.00055342,120]
[321440583,1712190706407,-500.0,0.00055342,120]
[321440584,1712190706417,-1622.05,0.00055342,120]
[321440585,1712190706426,-1774.24,0.00055342,120]
[321440586,1712190706436,-500.0,0.00055342,120]
[321440587,1712190706445,-500.0,0.00055342,120]
[321440588,1712190706455,-500.0,0.00055342,120]
[321440589,1712190706464,-909.87,0.00055342,120]
[321440590,1712190706474,-1556.91,0.00055342,120]
[321440591,1712190706483,-500.0,0.00055342,120]
[321440592,1712190706492,-500.0,0.00055342,120]
[321440593,1712190706501,-500.0,0.00055342,120]
[321440594,1712190706511,-500.0,0.00055342,120]
[321440595,1712190706520,-600.06,0.00055342,120]
[321440596,1712190706529,-676.42,0.00055342,120]
[321440597,1712190706539,-500.0,0.00055342,60]
[321440598,1712190706550,-2958.64,0.00055342,120]
[321440599,1712190706560,-500.0,0.00055342,120]
[321440600,1712190706569,-715.45,0.00055342,120]
[321440601,1712190706578,-500.0,0.00055342,120]
[321440602,1712190706587,-897.57,0.00055342,120]
[321440603,1712190706598,-500.0,0.00055342,120]
[321440604,1712190706608,-1288.54,0.00055342,120]
[321440605,1712190706617,-737.72,0.00055342,120]
[321440606,1712190706626,-786.57,0.00055342,120]
[321440607,1712190706637,-500.0,0.00055342,120]
[321440608,1712190706647,-500.0,0.00055342,120]
[321440609,1712190706656,-938.87,0.00055342,120]
[321440610,1712190706665,-500.0,0.00055342,120]
[321440611,1712190706674,-500.0,0.00055342,120]
[321440612,1712190706684,-500.0,0.00055342,120]
[321440613,1712190706694,-500.0,0.00055342,120]
[321440614,1712190706703,-500.0,0.00055342,120]
[321440615,1712190706713,-500.0,0.00055342,120]
[321440616,1712190706723,-500.0,0.00055342,120]
[321440617,1712190706734,-528.54748635,0.00055342,120]
[321440618,1712190706744,-515.45830104,0.00055342,120]
[321440619,1712190706754,-500.0,0.00055342,2]
[321440620,1712190706764,-554.02244356,0.00055342,120]
[321440621,1712190706773,-1930.97,0.00055342,120]
[321440622,1712190706782,-500.0,0.00055342,120]
[321440623,1712190706792,-500.0,0.00055342,120]
[321440624,1712190706801,-500.0,0.00055342,120]
[321440625,1712190706810,-419.70240858,0.00055342,120]
[321440626,1712190706820,-500.0,0.00055342,120]
[321440627,1712190706829,-500.0,0.00055342,120]
[321440628,1712190706838,-1180.17,0.00055342,30]
[321440629,1712190706848,-700.82,0.00055342,120]
[321440630,1712190706859,-555.26615965,0.00055342,120]
[321440631,1712190706869,-1176.41,0.00055342,120]
[321440632,1712190706878,-500.0,0.00055342,120]
[321440633,1712190706888,-500.0,0.00055342,120]
[321440634,1712190706898,-1120.92,0.00055342,120]
[321440635,1712190706907,-500.0,0.00055342,120]
[321440636,1712190706916,-540.52679265,0.00055342,120]
[321440637,1712190706926,-500.0,0.00055342,120]
[321440638,1712190706935,-529.49,0.00055342,120]
[321440639,1712190706944,-1238.44,0.00055342,120]
[321440640,1712190706953,-500.0,0.00055342,120]
[321440641,1712190706963,-1084.08,0.00055342,120]
[321440642,1712190706972,-500.0,0.00055342,120]
[321440643,1712190706981,-500.0,0.00055342,120]
[321440644,1712190706990,-500.0,0.00055342,120]
[321440645,1712190706999,-954.95,0.00055342,120]
[321440646,1712190707008,-500.0,0.00055342,120]
[321440647,1712190707017,-500.0,0.00055342,120]
[321440648,1712190707027,-1167.8,0.00055342,120]
[321440649,1712190707036,-500.0,0.00055342,120]
[321440650,1712190707046,-500.0,0.00055342,120]
[321440651,1712190707055,-500.0,0.00055342,120]
[321440652,1712190707064,-500.0,0.00055342,120]
[321440653,1712190707073,-500.0,0.00055342,120]
[321440654,1712190707085,-1310.95,0.00055342,120]
[321440655,1712190707095,-500.0,0.00055342,120]
[321440656,1712190707105,-292.91183872,0.00055342,120]
[321440657,1712190707115,-500.0,0.00055342,120]
[321440658,1712190707125,-500.0,0.00055342,120]
[321440659,1712190707137,-517.56,0.00055342,120]
[321440660,1712190707146,-528.3,0.00055342,120]
[321440661,1712190707155,-500.0,0.00055342,120]
[321440662,1712190707166,-882.75,0.00055342,120]
[321440663,1712190707175,-518.33743695,0.00055342,120]
[321440664,1712190707184,-500.0,0.00055342,120]
[321440665,1712190707194,-500.0,0.00055342,120]
[321440666,1712190707203,-500.0,0.00055342,120]
[321440667,1712190707213,-500.0,0.00055342,120]
[321440668,1712190707222,-500.0,0.00055342,120]
[321440669,1712190707232,-1227.92,0.00055342,120]
[321440670,1712190707243,-1590.89,0.00055342,120]
[321440671,1712190707254,-500.0,0.00055342,120]
[321440672,1712190707263,-799.42,0.00055342,120]
[321440673,1712190707273,-314.63110081,0.00055342,120]
[321440674,1712190707282,-500.0,0.00055342,120]
[321440675,1712190707292,-513.61372717,0.00055342,120]
[321440676,1712190707301,-854.96,0.00055342,120]
[321440677,1712190707312,-500.0,0.00055342,120]
[321440678,1712190707321,-808.59,0.00055342,120]
[321440679,1712190707331,-843.85,0.00055342,120]
[321440680,1712190707342,-1166.52,0.00055342,120]
[321440681,1712190707351,-500.0,0.00055342,120]
[321440682,1712190707560,-1000.0,0.00055342,120]
[321440683,1712190707570,-784.86,0.00055342,120]
[321440684,1712190707580,-500.0,0.00055342,120]
[321440685,1712190707589,-1141.08,0.00055342,120]
[321440686,1712190707599,-732.82,0.00055342,120]
[321440687,1712190707608,-500.0,0.00055342,120]
[321440688,1712190707617,-1322.44,0.00055342,120]
[321440689,1712190707627,-213.13476611,0.00055342,120]
[321440690,1712190707637,-500.0,0.00055342,120]
[321440691,1712190707646,-500.0,0.00055342,120]
[321440692,1712190707656,-811.09,0.00055342,120]
[321440693,1712190707665,-1327.45,0.00055342,120]
[321440694,1712190707674,-1071.59,0.00055342,60]
[321440695,1712190707683,-500.0,0.00055342,120]
[321440696,1712190707692,-1233.42,0.00055342,120]
[321440697,1712190707702,-500.0,0.00055342,120]
[321440698,1712190707711,-500.0,0.00055342,120]
[321440699,1712190707720,-500.0,0.00055342,120]
[321440700,1712190707729,-500.0,0.00055342,120]
[321440701,1712190707738,-500.0,0.00055342,120]
[321440702,1712190707747,-500.0,0.00055342,120]
[321440703,1712190707756,-811.27,0.00055342,120]
[321440704,1712190707765,-500.0,0.00055342,2]
[321440705,1712190707774,-1449.74,0.00055342,120]
[321440706,1712190707783,-447.91146625,0.00055342,120]
[321440707,1712190707793,-500.0,0.00055342,120]
[321440708,1712190707802,-1079.11,0.00055342,120]
[321440709,1712190707811,-1740.04,0.00055342,120]
[321440710,1712190707821,-500.0,0.00055342,120]
[321440711,1712190707830,-1211.71,0.00055342,120]
[321440712,1712190707839,-500.0,0.00055342,120]
[321440713,1712190707848,-1659.53,0.00055342,120]
[321440714,1712190707857,-500.0,0.00055342,120]
[321440715,1712190707867,-1000.0,0.00055342,120]
[321440716,1712190707875,-500.0,0.00055342,120]
[321440717,1712190707885,-500.0,0.00055342,120]
[321440718,1712190707893,-634.12,0.00055342,120]
[321440719,1712190707902,-871.93,0.00055342,120]
[321440720,1712190707911,-500.0,0.00055342,120]
[321440721,1712190707920,-500.0,0.00055342,120]
[321440722,1712190707929,-500.0,0.00055342,120]
[321440723,1712190707938,-555.42,0.00055342,120]
[321440724,1712190707947,-826.77,0.00055342,120]
[321440725,1712190707956,-500.0,0.00055342,120]
[321440726,1712190707965,-500.0,0.00055342,120]
[321440727,1712190707974,-511.32265569,0.00055342,120]
[321440728,1712190707983,-500.0,0.00055342,120]
[321440729,1712190707992,-831.64,0.00055342,120]
[321440730,1712190708002,-799.72,0.00055342,120]
[321440731,1712190708011,-500.0,0.00055342,120]
[321440732,1712190708020,-1237.54,0.00055342,120]
[321440733,1712190708029,-500.0,0.00055342,120]
[321440734,1712190708038,-1350.79,0.00055342,120]
[321440735,1712190708049,-500.0,0.00055342,120]
[321440736,1712190708058,-654.81,0.00055342,120]
[321440737,1712190708067,-500.0,0.00055342,120]
[321440738,1712190708078,-500.0,0.00055342,120]
[321440739,1712190708091,-500.0,0.00055342,120]
[321440740,1712190708101,-500.0,0.00055342,120]
[321440741,1712190708110,-1606.3,0.00055342,120]
[321440742,1712190708119,-500.0,0.00055342,120]
[321440743,1712190708128,-531.62405478,0.00055342,120]
[321440744,1712190708139,-500.0,0.00055342,120]
[321440745,1712190708148,-1128.79,0.00055342,120]
[321440746,1712190708158,-500.0,0.00055342,120]
[321440747,1712190708168,-500.0,0.00055342,120]
[321440748,1712190708178,-230.91954058,0.00055342,120]
[321440749,1712190708187,-500.0,0.00055342,120]
[321440750,1712190708196,-500.0,0.00055342,120]
[321440751,1712190708205,-500.0,0.00055342,120]
[321440752,1712190708214,-1643.52,0.00055342,120]
[321440753,1712190708223,-500.0,0.00055342,120]
[321440754,1712190708232,-500.0,0.00055342,120]
[321440755,1712190708241,-500.0,0.00055342,120]
[321440756,1712190708251,-973.28,0.00055342,120]
[321440757,1712190708260,-500.0,0.00055342,120]
[321440758,1712190708269,-647.75,0.00055342,120]
[321440759,1712190708279,-1769.82,0.00055342,120]
[321440760,1712190708288,-500.0,0.00055342,120]
[321440761,1712190708297,-1882.12,0.00055342,120]
[321440762,1712190708306,-473.45819583,0.00055342,120]
[321440763,1712190708315,-722.84,0.00055342,120]
[321440764,1712190708324,-500.0,0.00055342,120]
[321440765,1712190708333,-500.0,0.00055342,120]
[321440766,1712190708342,-1179.39,0.00055342,120]
[321440767,1712190708351,-1115.77,0.00055342,120]
[321440768,1712190708361,-936.33,0.00055342,120]
[321440769,1712190708370,-500.0,0.00055342,2]
[321440770,1712190708379,-500.0,0.00055342,120]
[321440771,1712190708390,-727.44,0.00055342,120]
[321440772,1712190708398,-1321.08,0.00055342,120]
[321440773,1712190708407,-1616.65,0.00055342,120]
[321440774,1712190708417,-595.85,0.00055342,120]
[321440775,1712190708426,-8315.82,0.00055342,30]
[321440776,1712190708435,-576.96,0.00055342,120]
[321440777,1712190708445,-500.0,0.00055342,120]
[321440778,1712190708454,-405.49801673,0.00055342,120]
[321440779,1712190708463,-1052.18,0.00055342,120]
[321440780,1712190708473,-1676.65,0.00055342,120]
[321440781,1712190708481,-500.0,0.00055342,120]
[321440782,1712190708490,-1337.92,0.00055342,120]
[321440783,1712190708499,-500.0,0.00055342,120]
[321440784,1712190708509,-514.06670516,0.00055342,120]
[321440785,1712190708518,-500.0,0.00055342,120]
[321440786,1712190708527,-512.11460839,0.00055342,120]
[321440787,1712190708536,-964.97,0.00055342,120]
[321440788,1712190708546,-1028.62,0.00055342,120]
[321440789,1712190708555,-646.02,0.00055342,120]
[321440790,1712190708564,-2899.95,0.00055342,120]
[321440791,1712190708574,-2485.77,0.00055342,120]
[321440792,1712190708583,-636.55,0.00055342,120]
[321440793,1712190708592,-952.89,0.00055342,120]
[321440794,1712190708601,-500.0,0.00055342,120]
[321440795,1712190708610,-582.69,0.00055342,120]
[321440796,1712190708619,-791.38,0.00055342,120]
[321440797,1712190708629,-973.42,0.00055342,120]
[321440798,1712190708640,-342.29593361,0.00055342,120]
[321440799,1712190708649,-500.0,0.00055342,120]
[321440800,1712190708658,-2701.37,0.00055342,120]
[321440801,1712190708667,-19586.0,0.00055342,120]
[321440802,1712190708677,-500.0,0.00055342,120]
[321440803,1712190708686,-538.46,0.00055342,120]
[321440804,1712190708695,-500.0,0.00055342,120]
[321440805,1712190708705,-569.176044,0.00055342,120]
[321440806,1712190708714,-1398.8,0.00055342,120]
[321440807,1712190708723,-500.0,0.00055342,120]
[321440808,1712190708732,-500.0,0.00055342,120]
[321440809,1712190708742,-1291.22,0.00055342,120]
[321440810,1712190708752,-920.41,0.00055342,120]
[321440811,1712190708761,-3408.38,0.00055342,120]
[321440812,1712190708771,-4502.35,0.00055342,120]
[321440813,1712190708780,-500.0,0.00055342,120]
[321440814,1712190708789,-2094.53,0.00055342,120]
[321440815,1712190708798,-500.0,0.00055342,120]
[321440816,1712190708808,-523.71786216,0.00055342,120]
[321440817,1712190708818,-4873.76,0.00055342,120]
[321440818,1712190708827,-500.0,0.00055342,120]
[321440819,1712190708836,-583.09,0.00055342,120]
[321440820,1712190708846,-813.48,0.00055342,120]
[321440821,1712190708855,-1821.59,0.00055342,120]
[321440822,1712190708864,-500.0,0.00055342,120]
[321440823,1712190708873,-524.32,0.00055342,120]
[321440824,1712190708882,-500.0,0.00055342,120]
[321440825,1712190708893,-500.0,0.00055342,120]
[321440826,1712190708902,-500.0,0.00055342,120]
[321440827,1712190708913,-500.0,0.00055342,120]
[321440828,1712190708924,-511.39108266,0.00055342,120]
[321440829,1712190708935,-511.41210005,0.00055342,120]
[321440830,1712190708946,-543.19870199,0.00055342,120]
[321440831,1712190708957,-2363.53,0.00055342,120]
[321440832,1712190708966,-8995.7,0.00055342,120]
[321440833,1712190708975,-1581.23,0.00055342,120]
[321440834,1712190708984,-502.84918275,0.00055342,120]
[321440835,1712190708993,-822.14,0.00055342,120]
[321440836,1712190709003,-500.0,0.00055342,120]
[321440837,1712190709013,-500.0,0.00055342,120]
[321440838,1712190709022,-538.27762372,0.00055342,120]
[321440839,1712190709032,-500.0,0.00055342,120]
[321440840,1712190709041,-500.0,0.00055342,120]
[321440841,1712190709051,-781.02,0.00055342,120]
[321440842,1712190709061,-5897.06,0.00055342,120]
[321440843,1712190709071,-500.0,0.00055342,120]
[321440844,1712190709083,-1652.9,0.00055342,2]
[321440845,1712190709092,-2179.9,0.00055342,120]
[321440846,1712190709102,-500.0,0.00055342,120]
[321440847,1712190709112,-1037.75,0.00055342,120]
[321440848,1712190709122,-3960.29,0.00055342,120]
[321440849,1712190709132,-2409.69,0.00055342,120]
[321440850,1712190709146,-674.38,0.00055342,120]
[321440851,1712190709157,-207.04849767,0.00055342,120]
[321440852,1712190709166,-511.24910097,0.00055342,120]
[321440853,1712190709176,-787.49,0.00055342,120]
[321440854,1712190709186,-5383.81,0.00055342,120]
[321440855,1712190709195,-532.35,0.00055342,120]
[321440856,1712190709204,-2699.88,0.00055342,120]
[321440857,1712190709214,-5238.07,0.00055342,120]
[321440858,1712190709224,-1038.55,0.00055342,120]
[321440859,1712190709233,-500.0,0.00055342,120]
[321440860,1712190709243,-2370.1,0.00055342,120]
[321440861,1712190709253,-500.0,0.00055342,120]
[321440862,1712190709263,-500.0,0.00055342,120]
[321440863,1712190709272,-2844.11,0.00055342,120]
[321440864,1712190709282,-625.63,0.00055342,120]
[321440865,1712190709291,-10144.41,0.00055342,120]
[321440866,1712190709301,-500.0,0.00055342,120]
[321440867,1712190709311,-517.37775507,0.00055342,120]
[321440868,1712190709322,-1539.91,0.00055342,120]
[321440869,1712190709332,-531.76,0.00055342,120]
[321440870,1712190709342,-768.38,0.00055342,120]
[321440871,1712190709352,-500.0,0.00055342,120]
[321440872,1712190709361,-673.34,0.00055342,120]
[321440873,1712190709372,-500.0,0.00055342,120]
[321440874,1712190709382,-1326.53,0.00055342,120]
[321440875,1712190709397,-500.0,0.00055342,120]
[321440876,1712190709406,-1381.92,0.00055342,120]
[321440877,1712190709416,-8594.77,0.00055342,120]
[321440878,1712190709427,-3387.21,0.00055342,120]
[321440879,1712190709437,-687.99,0.00055342,120]
[321440880,1712190709447,-500.0,0.00055342,120]
[321440881,1712190709457,-538.76,0.00055342,120]
[321440882,1712190709466,-3858.52,0.00055342,120]
[321440883,1712190709476,-12336.87,0.00055342,120]
[321440884,1712190709486,-1028.63,0.00055342,120]
[321440885,1712190709496,-703.56,0.00055342,120]
[321440886,1712190709506,-500.0,0.00055342,120]
[321440887,1712190709516,-746.05,0.00055342,120]
[321440888,1712190709526,-1562.6,0.00055342,120]
[321440889,1712190709535,-500.0,0.00055342,120]
[321440890,1712190709545,-52265.13,0.00055342,120]
[321440891,1712190709555,-6683.26,0.00055342,120]
[321440892,1712190709565,-500.0,0.00055342,120]
[321440893,1712190709575,-234.05099735,0.00055342,120]
[321440894,1712190709584,-1091.74,0.00055342,120]
[321440895,1712190709594,-1886.06,0.00055342,120]
[321440896,1712190709604,-703.82,0.00055342,120]
[321440897,1712190709613,-3304.09,0.00055342,120]
[321440898,1712190709625,-1765.46,0.00055342,120]
[321440899,1712190709634,-500.0,0.00055342,120]
[321440900,1712190709647,-1201.97,0.00055342,120]
[321440901,1712190709656,-500.0,0.00055342,120]
[321440902,1712190709665,-559.35,0.00055342,120]
[321440903,1712190709674,-2417.27,0.00055342,120]
[321440904,1712190709683,-640.43,0.00055342,120]
[321440905,1712190709692,-500.0,0.00055342,120]
[321440906,1712190709702,-5517.43,0.00055342,120]
[321440907,1712190709711,-536.59222158,0.00055342,120]
[321440908,1712190709720,-1414.5,0.00055342,120]
[321440909,1712190709730,-3159.25,0.00055342,120]
[321440910,1712190709739,-609.09,0.00055342,120]
[321440911,1712190709748,-2393.05,0.00055342,120]
[321440912,1712190709757,-5381.38,0.00055342,120]
[321440913,1712190709766,-500.0,0.00055342,120]
[321440914,1712190709775,-688.67,0.00055342,120]
[321440915,1712190709784,-643.76,0.00055342,120]
[321440916,1712190709793,-500.0,0.00055342,120]
[321440917,1712190709802,-516.63261091,0.00055342,120]
[321440918,1712190709811,-15845.22,0.00055342,120]
[321440919,1712190709821,-500.0,0.00055342,120]
[321440920,1712190709829,-6322.62,0.00055342,120]
[321440921,1712190709839,-1847.39,0.00055342,120]
[321440922,1712190709850,-500.0,0.00055342,120]
[321440923,1712190709860,-500.0,0.00055342,120]
[321440924,1712190709869,-1830.15,0.00055342,7]
[321440925,1712190709879,-500.0,0.00055342,120]
[321440926,1712190709890,-500.0,0.00055342,120]
[321440927,1712190709898,-500.0,0.00055342,120]
[321440928,1712190709908,-3208.85,0.00055342,120]
[321440929,1712190709917,-500.0,0.00055342,120]
[321440930,1712190709927,-938.84,0.00055342,120]
[321440931,1712190709936,-2775.04,0.00055342,120]
[321440932,1712190709945,-8674.69,0.00055342,120]
[321440933,1712190709954,-571.59,0.00055342,120]
[321440934,1712190709963,-612.67,0.00055342,120]
[321440935,1712190709972,-2348.38,0.00055342,120]
[321440936,1712190709981,-1633.6,0.00055342,120]
[321440937,1712190709990,-572.28,0.00055342,120]
[321440938,1712190709999,-1199.55,0.00055342,120]
[321440939,1712190710008,-2290.96,0.00055342,120]
[321440940,1712190710017,-753.5,0.00055342,120]
[321440941,1712190710026,-612.67210663,0.00055342,120]
[321440942,1712190710035,-895.86,0.00055342,120]
[321440943,1712190710045,-1230.34,0.00055342,120]
[321440944,1712190710054,-3663.13,0.00055342,120]
[321440945,1712190710063,-3202.53,0.00055342,120]
[321440946,1712190710072,-2341.82,0.00055342,120]
[321440947,1712190710085,-901.12,0.00055342,120]
[321440948,1712190710095,-3000.0,0.00055342,120]
[321440949,1712190710104,-729.75,0.00055342,120]
[321440950,1712190710113,-500.0,0.00055342,120]
[321440951,1712190710123,-316.83021274,0.00055342,120]
[321440952,1712190710132,-2610.4,0.00055342,120]
[321440953,1712190710143,-500.0,0.00055342,120]
[321440954,1712190710153,-479.0797639,0.00055342,120]
[321440955,1712190710163,-870.02,0.00055342,120]
[321440956,1712190710173,-1664.02,0.00055342,120]
[321440957,1712190710183,-1542.22,0.00055342,120]
[321440958,1712190710192,-500.0,0.00055342,120]
[321440959,1712190710202,-2972.47,0.00055342,120]
[321440960,1712190710211,-3838.66,0.00055342,120]
[321440961,1712190710220,-500.0,0.00055342,120]
[321440962,1712190710229,-500.0,0.00055342,120]
[321440963,1712190710238,-1832.74,0.00055342,120]
[321440964,1712190710247,-1633.68,0.00055342,120]
[321440965,1712190710257,-3692.77,0.00055342,120]
[321440966,1712190710266,-923.66,0.00055342,120]
[321440967,1712190710275,-500.0,0.00055342,120]
[321440968,1712190710284,-3266.0,0.00055342,120]
[321440969,1712190710294,-500.0,0.00055342,120]
[321440970,1712190710303,-500.0,0.00055342,120]
[321440971,1712190710312,-988.36,0.00055342,120]
[321440972,1712190710321,-500.0,0.00055342,120]
[321440973,1712190710330,-2611.37,0.00055342,120]
[321440974,1712190710339,-500.0,0.00055342,120]
[321440975,1712190710348,-500.0,0.00055342,120]
[321440976,1712190710357,-881.43,0.00055342,120]
[321440977,1712190710366,-554.37,0.00055342,120]
[321440978,1712190710375,-2383.91,0.00055342,120]
[321440979,1712190710384,-769.75,0.00055342,120]
[321440980,1712190710393,-1456.48,0.00055342,120]
[321440981,1712190710403,-500.0,0.00055342,120]
[321440982,1712190710413,-500.0,0.00055342,120]
[321440983,1712190710423,-2697.48,0.00055342,120]
[321440984,1712190710432,-3057.34,0.00055342,120]
[321440985,1712190710441,-500.0,0.00055342,120]
[321440986,1712190710450,-517.32678493,0.00055342,120]
[321440987,1712190710460,-543.06843911,0.00055342,120]
[321440988,1712190710468,-2046.74,0.00055342,120]
[321440989,1712190710477,-1187.42,0.00055342,120]
[321440990,1712190710486,-14170.27,0.00055342,120]
[321440991,1712190710495,-3919.97,0.00055342,120]
[321440992,1712190710505,-500.0,0.00055342,120]
[321440993,1712190710514,-1612.04,0.00055342,120]
[321440994,1712190710524,-500.0,0.00055342,120]
[321440995,1712190710533,-500.0,0.00055342,120]
[321440996,1712190710542,-500.0,0.00055342,120]
[321440997,1712190710552,-500.0,0.00055342,120]
[321440998,1712190710562,-2691.76,0.00055342,120]
[321440999,1712190710571,-500.0,0.00055342,120]
[321441000,1712190710580,-899.75,0.00055342,120]
[321441001,1712190710589,-751.45,0.00055342,120]
[321441002,1712190710598,-657.28,0.00055342,120]
[321441003,1712190710608,-500.0,0.00055342,120]
[321441004,1712190710617,-571.26,0.00055342,120]
[321441005,1712190710627,-2478.42,0.00055342,120]
[321441006,1712190710638,-817.0,0.00055342,120]
[321441007,1712190710647,-4961.7,0.00055342,120]
[321441008,1712190710656,-541.17847319,0.00055342,120]
[321441009,1712190710666,-2984.35,0.00055342,120]
[321441010,1712190710675,-679.51,0.00055342,120]
[321441011,1712190710685,-600.0,0.00055342,2]
[321441012,1712190710694,-1384.73,0.00055342,120]
[321441013,1712190710703,-2343.79,0.00055342,120]
[321441014,1712190710713,-562.78,0.00055342,120]
[321441015,1712190710723,-6695.59,0.00055342,120]
[321441016,1712190710732,-39804.86,0.00055342,120]
[321441017,1712190710742,-734.72,0.00055342,120]
[321441018,1712190710751,-1228.9,0.00055342,120]
[321441019,1712190710760,-500.0,0.00055342,120]
[321441020,1712190710769,-15326.48,0.00055342,120]
[321441021,1712190710779,-1931.84,0.00055342,120]
[321441022,1712190710789,-525.19,0.00055342,120]
[321441023,1712190710799,-500.0,0.00055342,120]
[321441024,1712190710809,-500.0,0.00055342,120]
[321441025,1712190710818,-649.5,0.00055342,120]
[321441026,1712190710827,-2804.52,0.00055342,120]
[321441027,1712190710836,-3255.55,0.00055342,120]
[321441028,1712190710846,-1055.26,0.00055342,120]
[321441029,1712190710856,-4501.92,0.00055342,120]
[321441030,1712190710865,-500.0,0.00055342,120]
[321441031,1712190710875,-500.0,0.00055342,120]
[321441032,1712190710885,-1991.29,0.00055342,120]
[321441033,1712190710894,-3921.47,0.00055342,120]
[321441034,1712190710903,-5711.44,0.00055342,120]
[321441035,1712190710912,-918.29,0.00055342,120]
[321441036,1712190710922,-8672.5,0.00055342,120]
[321441037,1712190710931,-4454.06,0.00055342,120]
[321441038,1712190710940,-762.57,0.00055342,120]
[321441039,1712190710950,-500.0,0.00055342,120]
[321441040,1712190710959,-4843.26,0.00055342,120]
[321441041,1712190710968,-1184.27,0.00055342,120]
[321441042,1712190710978,-1668.52,0.00055342,7]
[321441043,1712190710988,-4643.2,0.00055342,120]
[321441044,1712190710997,-2049.6,0.00055342,120]
[321441045,1712190711006,-500.0,0.00055342,120]
[321441046,1712190711016,-530.57,0.00055342,120]
[321441047,1712190711026,-912.43,0.00055342,120]
[321441048,1712190711035,-3564.26,0.00055342,120]
[321441049,1712190711044,-4326.4,0.00055342,120]
[321441050,1712190711055,-500.0,0.00055342,120]
[321441051,1712190711064,-775.35,0.00055342,120]
[321441052,1712190711075,-500.0,0.00055342,120]
[321441053,1712190711086,-7314.89,0.00055342,120]
[321441054,1712190711095,-7432.69,0.00055342,120]
[321441055,1712190711105,-4339.54,0.00055342,120]
[321441056,1712190711114,-500.0,0.00055342,120]
[321441057,1712190711124,-5950.72,0.00055342,120]
[321441058,1712190711135,-500.0,0.00055342,120]
[321441059,1712190711145,-4630.91,0.00055342,120]
[321441060,1712190711154,-500.0,0.00055342,120]
[321441061,1712190711165,-500.0,0.00055342,120]
[321441062,1712190711174,-500.0,0.00055342,120]